fUST/lending_fUST_20250813
["ID","MTS","AMOUNT","RATE_DAILY","PERIOD"]
[379016543,1755091839271,-186.68825619,0.00024873,2]
[379016544,1755091839281,-500.0,0.00024873,2]
[379016545,1755091839291,-500.0,0.00024873,2]
[379016546,1755091839301,-213.28,0.00024875,3]
[379016547,1755091839311,-639.89,0.00024875,3]
[379016548,1755091839321,-426.57,0.00024879,3]
[379016549,1755091839331,-341.20045156,0.00024899,2]
[379016550,1755091839341,-610.21512628,0.00024899,2]
[379016551,1755091839351,-610.21512628,0.00024899,2]
[379016552,1755091839361,-610.21512628,0.00024899,2]
[379016553,1755091839370,-610.21512628,0.00024899,2]
[379016554,1755091839380,-610.21512628,0.00024899,2]
[379016555,1755091839391,-610.21512628,0.00024899,2]
[379016556,1755091839400,-610.21512628,0.00024899,2]
[379016557,1755091839410,-610.21512628,0.00024899,2]
[379016558,1755091839420,-610.21512628,0.00024899,2]
[379016559,1755091839429,-610.21512628,0.00024899,2]
[379016560,1755091839439,-610.21512628,0.00024899,2]
[379016561,1755091839448,-610.21512628,0.00024899,2]
[379016562,1755091839458,-610.21512628,0.00024899,2]
[379016563,1755091839467,-610.21512628,0.00024899,2]
[379016564,1755091839478,-610.21512628,0.00024899,2]
[379016565,1755091839488,-610.21512628,0.00024899,2]
[379016566,1755091839498,-610.21512628,0.00024899,2]
[379016567,1755091839508,-610.21512628,0.00024899,2]
[379016568,1755091839518,-625.47050444,0.00024899,2]
[379016569,1755091839527,-625.47050444,0.00024899,2]
[379016570,1755091839537,-625.47050444,0.00024899,2]
[379016571,1755091839547,-625.47050444,0.00024899,2]
[379016572,1755091839556,-625.47050444,0.00024899,2]
[379016573,1755091839566,-625.47050444,0.00024899,2]
[379016574,1755091839576,-625.47050444,0.00024899,2]
[379016575,1755091839586,-625.47050444,0.00024899,2]
[379016577,1755091839596,-625.47050444,0.00024899,2]
[379016578,1755091839605,-925.26498759,0.00024899,2]
[379016579,1755091839615,-6729.53432496,0.000249,2]
[379016580,1755091839625,-514.07,0.000249,7]
[379016581,1755091839634,-1760.0,0.000249,3]
[379016582,1755091839645,-218851.843191,0.000249,2]
[379016583,1755091839659,-346.42487432,0.0002491,2]
[379016585,1755091839669,-200.0,0.00024951,20]
[379016587,1755091839680,-200.0,0.00024951,20]
[379016588,1755091839690,-200.0,0.00024951,20]
[379016589,1755091839700,-200.0,0.00024951,20]
[379016590,1755091839711,-320.0,0.00024951,20]
[379016591,1755091839721,-1000.0,0.00024998,2]
[379016592,1755091839731,-218851.843191,0.00025,2]
[379016593,1755091839741,-200.0,0.0002501,10]
[379016594,1755091839752,-200.0,0.0002501,10]
[379016595,1755091839761,-200.0,0.0002501,10]
[379016596,1755091839772,-200.0,0.0002501,10]
[379016597,1755091839782,-200.0,0.0002501,10]
[379016599,1755091839791,-200.0,0.0002501,10]
[379016600,1755091839801,-168.788403,0.0002501,10]
[379016602,1755091839811,-218830.198582,0.0002501,2]
[379016611,1755091840006,-21.644609,0.0002501,2]
[379016612,1755091840016,-2525.56188003,0.0002502,2]
[379016613,1755091840029,-7577.67062683,0.0002502,2]
[379016615,1755091840470,-724.56492546,0.0002502,2]
[379016616,1755091840482,-5650.0,0.0002502,2]
[379016617,1755091840495,-43942.0,0.0002502,2]
[379016630,1755091843369,-325.0,0.000249,3]
[379016631,1755091843381,-289.00347756,0.0002502,2]
[379016648,1755091846525,-0.85274029,0.0002502,2]
[379016649,1755091846538,-1724.6396072,0.0002502,2]
[379016650,1755091846549,-453.0,0.0002502,2]
[379016651,1755091846562,-18436.08049542,0.0002502,2]
[379016652,1755091846572,-7837.445221,0.00025042,2]
[379016653,1755091846583,-500.0,0.00025073,2]
[379016654,1755091846593,-500.0,0.00025073,2]
[379016655,1755091846602,-500.0,0.00025073,2]
[379016656,1755091846612,-500.0,0.00025073,2]
[379016657,1755091846621,-500.0,0.00025073,2]
[379016658,1755091846630,-500.0,0.00025073,2]
[379016659,1755091846640,-500.0,0.00025073,2]
[379016660,1755091846649,-9103.67929201,0.00025164,2]
[379016661,1755091846659,-272.66009295,0.00025206,2]
[379016662,1755091846669,-232.20185734,0.00025206,2]
[379016663,1755091846679,-151.0,0.00025206,2]
[379016664,1755091846688,-151.0,0.00025206,2]
[379016665,1755091846698,-151.0,0.00025206,2]
[379016666,1755091846707,-266.38691077,0.00025206,2]
[379016667,1755091846717,-282.50751216,0.00025206,2]
[379016668,1755091846726,-151.0,0.00025206,2]
[379016669,1755091846736,-151.0,0.00025206,2]
[379016670,1755091846745,-151.0,0.00025206,2]
[379016671,1755091846755,-241.99695447,0.00025206,2]
[379016672,1755091846764,-500.0,0.00025206,2]
[379016673,1755091846773,-151.0,0.00025206,2]
[379016674,1755091846782,-151.0,0.00025206,2]
[379016675,1755091846792,-159.93300004,0.00025206,2]
[379016676,1755091846802,-1000.0,0.00025421,2]
[379016677,1755091846811,-996.62689479,0.00025421,2]
[379016678,1755091846821,-645.88277923,0.00025433,2]
[379016679,1755091846830,-151.0,0.0002548,2]
[379016680,1755091846839,-151.0,0.0002548,2]
[379016681,1755091846850,-500.0,0.0002548,2]
[379016682,1755091846859,-151.0,0.0002548,2]
[379016683,1755091846868,-151.0,0.0002548,2]
[379016684,1755091846878,-151.0,0.00025487,5]
[379016685,1755091846887,-151.0,0.000255,14]
[379016686,1755091846902,-262.68,0.00025522,7]
[379016687,1755091846912,-500.0,0.00025546,2]
[379016688,1755091846921,-250.0,0.00025621,2]
[379016689,1755091846931,-1000.0,0.00025621,2]
[379016690,1755091846941,-1000.0,0.00025621,2]
[379016691,1755091846952,-1000.0,0.00025621,2]
[379016692,1755091846963,-1000.0,0.00025621,2]
[379016693,1755091846973,-500.0,0.00025621,2]
[379016694,1755091846982,-1000.0,0.00025621,2]
[379016695,1755091846991,-633.01825312,0.0002565,2]
[379016696,1755091847002,-198.0,0.00025754,2]
[379016697,1755091847012,-151.0,0.00025754,2]
[379016698,1755091847022,-500.0,0.00025754,2]
[379016699,1755091847031,-198.0,0.00025754,2]
[379016700,1755091847042,-198.0,0.00025754,2]
[379016701,1755091847052,-500.0,0.00025968,2]
[379016702,1755091847062,-151.0,0.00026,14]
[379016703,1755091847072,-1520.22691156,0.00026,7]
[379016704,1755091847088,-4048.77069656,0.00026,7]
[379016705,1755091847100,-1846.73686519,0.00026,7]
[379016706,1755091847110,-500.0,0.00026027,2]
[379016707,1755091847119,-151.0,0.00026028,2]
[379016708,1755091847130,-500.0,0.00026028,2]
[379016709,1755091847139,-151.0,0.00026082,5]
[379016710,1755091847151,-500.0,0.00026125,2]
[379016711,1755091847161,-350.0,0.00026168,2]
[379016712,1755091847170,-224.12422971,0.00026168,2]
[379016713,1755091847180,-501.13708076,0.00026168,2]
[379016714,1755091847189,-1500.0,0.00026168,2]
[379016715,1755091847199,-575.0294796,0.00026168,2]
[379016716,1755091847209,-426.56,0.00026245,3]
[379016717,1755091847220,-853.14,0.00026249,3]
[379016718,1755091847230,-151.0,0.00026302,2]
[379016719,1755091847241,-500.0,0.00026302,2]
[379016720,1755091847251,-645.88277923,0.00026311,2]
[379016721,1755091847262,-151.0,0.000264,10]
[379016722,1755091847272,-153.73563429,0.00026575,2]
[379016734,1755091996008,183.526164,0.00013699,2]
[379016746,1755092162932,695.52,0.000181,2]
[379016755,1755092357554,-1200.0,0.00019899,2]
[379016756,1755092357580,-8407.0,0.000199,2]
[379016757,1755092430925,-8124.0,0.000199,2]
[379016759,1755092507222,-1200.0,0.00018298,2]
[379016760,1755092507246,-2000.0,0.00018299,5]
[379016761,1755092507270,-2000.0,0.00018299,5]
[379016762,1755092507294,-2000.0,0.00018299,5]
[379016763,1755092507319,-1936.0,0.00018299,5]
[379016764,1755092574011,348.54,0.000181,2]
[379016765,1755092579776,-64.0,0.00018299,5]
[379016766,1755092579799,-2000.0,0.00018299,5]
[379016767,1755092579821,-2000.0,0.00018299,5]
[379016768,1755092579843,-2000.0,0.00018299,5]
[379016769,1755092579865,-657.0,0.00018299,5]
[379016772,1755092753486,11263.0,0.0001829,3]
[379016773,1755092775175,-300.0,0.00018899,2]
[379016774,1755092775211,-9822.0,0.000189,2]
[379016806,1755092843871,-761.0,0.00018639,5]
[379016812,1755092975702,5000.0,0.00018298,2]
[379016814,1755093006214,5000.0,0.00018298,2]
[379016955,1755093038478,-166.17068051,0.00018611,2]
[379016956,1755093038488,-706.97872852,0.00018621,2]
[379016957,1755093038498,-186.970357,0.000189,2]
[379016958,1755093038507,-192.849434,0.0001911,2]
[379016959,1755093038517,-162.56226157,0.00019303,2]
[379016960,1755093038625,-97.68954341,0.00019303,2]
[379016961,1755093038635,-1343.9558819,0.00019547,2]
[379016962,1755093038644,-200.0,0.00019844,20]
[379016963,1755093038654,-200.0,0.00019844,20]
[379016964,1755093038666,-200.0,0.00019844,20]
[379016965,1755093038675,-1258.27608347,0.00019855,2]
[379016966,1755093038685,-237.0,0.00019897,2]
[379016967,1755093038695,-1200.0,0.00019897,2]
[379016968,1755093038705,-1200.0,0.00019898,2]
[379016969,1755093038714,-300.0,0.00019898,2]
[379016970,1755093038724,-300.0,0.00019898,2]
[379016971,1755093038733,-300.0,0.00019898,2]
[379016972,1755093038743,-300.0,0.00019898,2]
[379016973,1755093038752,-300.0,0.00019898,2]
[379016974,1755093038762,-15041.42368344,0.00019899,2]
[379016975,1755093038772,-902.15480768,0.000199,2]
[379016976,1755093038784,-8051.5239863,0.000199,2]
[379016977,1755093038794,-160.0,0.00019954,2]
[379016978,1755093038803,-1258.27608346,0.00021152,2]
[379016979,1755093038813,-166.1706805,0.00021568,2]
[379016980,1755093038822,-4549.71225744,0.00021655,2]
[379016993,1755093040388,-448.26980914,0.00021655,2]
[379017042,1755093043676,-2043.22772686,0.00021655,2]
[379017043,1755093043690,-1912.46900035,0.00021655,2]
[379017044,1755093043700,-1680.0,0.00021669,2]
[379017045,1755093043710,-420.0,0.00021669,2]
[379017046,1755093043720,-157.0,0.00021669,2]
[379017047,1755093043730,-420.0,0.00021669,2]
[379017048,1755093043739,-300.0,0.00021669,2]
[379017049,1755093043752,-420.0,0.00021669,2]
[379017050,1755093043762,-1680.0,0.00021772,2]
[379017051,1755093043772,-200.0,0.00021788,20]
[379017052,1755093043782,-200.0,0.00021788,20]
[379017053,1755093043791,-200.0,0.00021788,20]
[379017054,1755093043801,-240.0,0.00021788,20]
[379017055,1755093043810,-1258.27608346,0.00022448,2]
[379017056,1755093043820,-151.0,0.0002267,2]
[379017057,1755093043830,-151.0,0.0002267,2]
[379017058,1755093043839,-250.0,0.0002267,2]
[379017059,1755093043848,-250.0,0.0002267,2]
[379017060,1755093043858,-250.0,0.0002267,2]
[379017061,1755093043867,-226.90102382,0.0002267,2]
[379017062,1755093043876,-151.0,0.0002267,2]
[379017063,1755093043886,-151.0,0.0002267,2]
[379017064,1755093043896,-151.0,0.0002267,2]
[379017065,1755093043905,-151.0,0.0002267,2]
[379017066,1755093043917,-151.0,0.0002267,2]
[379017067,1755093043927,-151.0,0.0002267,2]
[379017068,1755093043936,-6353.55,0.000228,2]
[379017069,1755093043947,-235.7,0.000234,2]
[379017070,1755093043956,-8953.67879379,0.00023409,2]
[379017071,1755093043966,-480.0,0.00023597,2]
[379017072,1755093043977,-180.0,0.00023597,2]
[379017073,1755093043987,-1920.0,0.00023598,2]
[379017074,1755093043997,-500.0,0.00023598,2]
[379017075,1755093044006,-1258.27608346,0.00023745,2]
[379017076,1755093044016,-461.84428375,0.00023748,2]
[379017077,1755093044025,-215.55264861,0.00023748,2]
[379017078,1755093044034,-160.0,0.0002376,2]
[379017079,1755093044043,-160.0,0.0002376,2]
[379017080,1755093044053,-160.0,0.0002376,2]
[379017081,1755093044062,-160.0,0.0002376,2]
[379017082,1755093044074,-232.03317797,0.0002376,2]
[379017083,1755093044083,-216.72950928,0.0002376,2]
[379017084,1755093044092,-843.29866057,0.0002376,2]
[379017085,1755093044102,-270.99,0.00023804,5]
[379017086,1755093044111,-180.17315768,0.00023804,5]
[379017087,1755093044121,-2351.0,0.00023824,2]
[379017088,1755093044131,-200.0,0.00023924,20]
[379017089,1755093044140,-200.0,0.00023924,20]
[379017090,1755093044149,-200.0,0.00023924,20]
[379017091,1755093044159,-200.0,0.00023924,20]
[379017092,1755093044172,-375.0,0.00023924,20]
[379017093,1755093044182,-1258.27608346,0.00025042,2]
[379017094,1755093044191,-1892.41919469,0.00025164,2]
[379017095,1755093044207,-528.90102382,0.00025164,2]
[379017104,1755093046470,-6532.35857528,0.00025164,2]
[379017105,1755093046481,-957.436,0.00025202,2]
[379017106,1755093046491,-583.499,0.00025202,2]
[379017107,1755093046500,-636.0,0.00025202,2]
[379017108,1755093046509,-219.80642472,0.00025202,2]
[379017109,1755093046522,-188.19357528,0.00025202,2]
[379017110,1755093046532,-202.33595677,0.00025625,2]
[379017111,1755093046541,-1249.0,0.00026069,2]
[379017112,1755093046551,-500.0,0.00026125,2]
[379017113,1755093046560,-200.0,0.00026268,20]
[379017114,1755093046570,-200.0,0.00026268,20]
[379017115,1755093046580,-200.0,0.00026268,20]
[379017116,1755093046590,-200.0,0.00026268,20]
[379017117,1755093046600,-200.0,0.00026268,20]
[379017118,1755093046609,-185.97046795,0.00026268,20]
[379017119,1755093046621,-14.02953205,0.00026268,20]
[379017120,1755093046631,-200.0,0.00026268,20]
[379017121,1755093046640,-246.0,0.00026268,20]
[379017122,1755093046650,-245.0,0.00026302,2]
[379017123,1755093046659,-500.0,0.00026302,2]
[379017124,1755093046671,-500.0,0.00026302,2]
[379017125,1755093046680,-774.9551446,0.00026339,2]
[379017126,1755093046829,-1.5522886,0.00026339,2]
[379017127,1755093046841,-481.76865026,0.00026339,2]
[379017128,1755093046851,-18.23134974,0.0002638,10]
[379017419,1755093272837,152.3548301,0.000181,2]
[379017995,1755093386705,151.0,0.00018297,2]
[379018024,1755093431826,160.0,0.00018297,2]
[379018048,1755093488179,-1200.0,0.00019504,2]
[379018053,1755093571700,158.054621,0.00013699,2]
[379018061,1755093666935,1026.0,0.00023,30]
[379018064,1755093824595,5000.0,0.00018297,2]
[379018065,1755093831517,208.598467,0.00017928,2]
[379018066,1755093840594,5000.0,0.00018297,2]
[379018069,1755093856975,5000.0,0.00018297,2]
[379018070,1755093873361,-630.38,0.00018482,2]
[379018071,1755093873388,-285.403517,0.00018919,2]
[379018072,1755093873412,-300.0,0.00019024,2]
[379018073,1755093873434,-26797.216483,0.00019025,2]
[379018074,1755093873468,5000.0,0.00018297,2]
[379019328,1755094002063,-205.49223635,0.0001865,2]
[379019330,1755094002087,-1778.278922,0.00018675,2]
[379019331,1755094002109,-649.083782,0.00018751,2]
[379019332,1755094002132,-4321.54331407,0.00018835,2]
[379019333,1755094002154,-553.47499288,0.000189,2]
[379019334,1755094002176,-899.1267527,0.00019025,2]
[379022524,1755094233165,-369.0287212,0.00019025,2]
[379022527,1755094233175,-349.48459821,0.00019301,2]
[379022528,1755094233185,-160.0,0.00019499,2]
[379022529,1755094233195,-1200.0,0.00019502,2]
[379022530,1755094233205,-500.0,0.00019504,2]
[379022531,1755094233214,-362.48317833,0.00019504,2]
[379022532,1755094233222,-452.26960162,0.00019763,2]
[379022533,1755094233231,-300.0,0.00019799,2]
[379022534,1755094233240,-300.0,0.00019799,2]
[379022536,1755094233251,-300.0,0.00019799,2]
[379022537,1755094233261,-300.0,0.00019799,2]
[379022538,1755094233271,-1200.0,0.00019799,2]
[379022539,1755094233281,-300.0,0.00019799,2]
[379022540,1755094233292,-159.31702066,0.000198,2]
[379022541,1755094233303,-159.31702064,0.000198,2]
[379022542,1755094233314,-159.31702064,0.000198,2]
[379022544,1755094233324,-199.014244,0.00019863,2]
[379022545,1755094233334,-500.0,0.00019896,2]
[379022546,1755094233344,-626.94,0.00019896,2]
[379022547,1755094233354,-500.0,0.00019896,2]
[379022548,1755094233365,-500.0,0.00019896,2]
[379022549,1755094233375,-355.32158017,0.00019896,2]
[379022550,1755094233385,-332.8782852,0.00019896,2]
[379022551,1755094233395,-500.0,0.00019896,2]
[379022553,1755094233406,-500.0,0.00019896,2]
[379022554,1755094233417,-500.0,0.00019896,2]
[379022555,1755094233427,-500.0,0.00019896,2]
[379022556,1755094233437,-500.0,0.00019896,2]
[379022557,1755094233447,-500.0,0.00019896,2]
[379022558,1755094233458,-213.47876431,0.00019896,2]
[379022559,1755094233467,-500.0,0.00019896,2]
[379022561,1755094233477,-500.0,0.00019896,2]
[379022562,1755094233487,-500.0,0.00019896,2]
[379022563,1755094233497,-585.36907497,0.00019896,2]
[379022564,1755094233507,-500.0,0.00019896,2]
[379022565,1755094233517,-500.0,0.00019896,2]
[379022566,1755094233527,-500.0,0.00019896,2]
[379022567,1755094233537,-500.0,0.00019896,2]
[379022569,1755094233547,-500.0,0.00019896,2]
[379022570,1755094233557,-500.0,0.00019896,2]
[379022571,1755094233567,-500.0,0.00019896,2]
[379022572,1755094233577,-500.0,0.00019896,2]
[379022573,1755094233588,-500.0,0.00019896,2]
[379022574,1755094233598,-500.0,0.00019896,2]
[379022575,1755094233608,-500.0,0.00019896,2]
[379022576,1755094233618,-500.0,0.00019896,2]
[379022578,1755094233628,-500.0,0.00019896,2]
[379022579,1755094233638,-500.0,0.00019896,2]
[379022580,1755094233650,-500.0,0.00019896,2]
[379022581,1755094233660,-500.0,0.00019896,2]
[379022582,1755094233670,-500.0,0.00019896,2]
[379022584,1755094233681,-358.04897058,0.00019896,2]
[379022585,1755094233691,-500.0,0.00019896,2]
[379022588,1755094233701,-392.78468002,0.000199,2]
[379022591,1755094233711,-339.22484233,0.000199,2]
[379022593,1755094233722,-500.0,0.000199,2]
[379022595,1755094233734,-248.07351204,0.000199,2]
[379022596,1755094233746,-500.0,0.000199,2]
[379022598,1755094233756,-500.0,0.000199,2]
[379022600,1755094233767,-500.0,0.000199,2]
[379022602,1755094233778,-500.0,0.000199,2]
[379022603,1755094233787,-500.0,0.000199,2]
[379022605,1755094233798,-500.0,0.000199,2]
[379022608,1755094233809,-500.0,0.000199,2]
[379022611,1755094233822,-500.0,0.000199,2]
[379022614,1755094233833,-333.25489346,0.000199,2]
[379022616,1755094233844,-512.61477236,0.000199,2]
[379022618,1755094233855,-10435.36913709,0.000199,2]
[379022619,1755094233866,-500.0,0.000199,2]
[379022620,1755094233877,-500.0,0.000199,2]
[379022621,1755094233888,-500.0,0.000199,2]
[379022622,1755094233901,-200.0,0.00020478,20]
[379022624,1755094233912,-200.0,0.00020478,20]
[379022625,1755094233925,-200.0,0.00020478,20]
[379022626,1755094233935,-200.0,0.00020478,20]
[379022627,1755094233945,-452.26960157,0.00021076,2]
[379022628,1755094233958,-300.0,0.00021563,2]
[379022629,1755094233969,-420.0,0.00021563,2]
[379022630,1755094233979,-300.0,0.00021563,2]
[379022632,1755094233990,-8451.68535665,0.00021655,2]
[379022633,1755094234019,-500.0,0.00019896,2]
[379022634,1755094234029,-500.0,0.00019896,2]
[379022635,1755094234040,-1983.68378043,0.00021655,2]
[379022636,1755094234051,-1680.0,0.00021667,2]
[379022638,1755094234062,-318.21188803,0.00022389,2]
[379022646,1755094239257,-500.0,0.00019896,2]
[379022647,1755094239267,-9.32012587,0.00019896,2]
[379022671,1755094240836,-255.90501161,0.00019896,2]
[379022672,1755094240850,-234.77486252,0.00019896,2]
[379022673,1755094240860,-279.722968,0.00019896,2]
[379022674,1755094240874,-220.277032,0.00019896,2]
[379022675,1755094240884,-383.241968,0.00019896,2]
[379022676,1755094240897,-116.758032,0.00019896,2]
[379022677,1755094240909,-500.0,0.00019896,2]
[379022678,1755094240920,-413.351968,0.00019896,2]
[379022679,1755094241572,-86.648032,0.00019896,2]
[379022680,1755094241581,-500.0,0.00019896,2]
[379022681,1755094241591,-500.0,0.00019896,2]
[379022682,1755094241600,-500.0,0.00019896,2]
[379022683,1755094241610,-500.0,0.00019896,2]
[379022684,1755094241620,-500.0,0.00019896,2]
[379022685,1755094241629,-169.30267714,0.00019896,2]
[379022686,1755094241639,-500.0,0.00019896,2]
[379022687,1755094241652,-134.05771354,0.00022389,2]
[379022688,1755094241665,-200.0,0.00022482,20]
[379022689,1755094241675,-200.0,0.00022482,20]
[379022690,1755094241685,-200.0,0.00022482,20]
[379022691,1755094241695,-200.0,0.00022482,20]
[379022692,1755094241706,-320.0,0.00022482,20]
[379022693,1755094241716,-153.0,0.00023,2]
[379022694,1755094241725,-456.95,0.00023,7]
[379022695,1755094241737,-500.0,0.00023,2]
[379022696,1755094241748,-500.0,0.00023,2]
[379022697,1755094241757,-157.0,0.00023,7]
[379022698,1755094241768,-945.06114791,0.00023385,2]
[379022699,1755094241778,-212.13,0.000234,2]
[379022700,1755094241788,-10435.36913708,0.00023409,2]
[379022701,1755094241798,-587.0,0.00023485,2]
[379022702,1755094241808,-425.24473047,0.00023548,2]
[379022703,1755094241818,-215.55264861,0.00023627,2]
[379022704,1755094241828,-452.26960157,0.00023702,2]
[379022705,1755094241838,-1013.0,0.00023711,2]
[379022706,1755094241849,-3363.38358123,0.00023724,2]
[379022707,1755094241859,-8375.09952978,0.00023726,2]
[379022708,1755094241869,-3363.38358123,0.00023732,2]
[379022709,1755094241879,-216.792,0.00023809,5]
[379022710,1755094241892,-553.47499288,0.000239,2]
[379022711,1755094241905,-945.06114789,0.00024038,2]
[379022712,1755094241915,-168.0,0.00024057,2]
[379022713,1755094241925,-151.0,0.00024179,2]
[379022714,1755094241936,-151.0,0.00024179,2]
[379022715,1755094241947,-151.0,0.00024179,2]
[379022716,1755094241958,-151.0,0.00024179,2]
[379022717,1755094241968,-151.0,0.00024179,2]
[379022718,1755094241979,-168.0,0.00024399,2]
[379022719,1755094241989,-168.0,0.00024545,2]
[379022720,1755094241999,-168.0,0.00024568,7]
[379022721,1755094242010,-200.0,0.00024682,20]
[379022722,1755094242020,-200.0,0.00024682,20]
[379022723,1755094242030,-200.0,0.00024682,20]
[379022724,1755094242040,-200.0,0.00024682,20]
[379022725,1755094242051,-200.0,0.00024682,20]
[379022726,1755094242060,-200.0,0.00024682,20]
[379022727,1755094242070,-367.0,0.00024682,20]
[379022728,1755094242080,-945.06114789,0.00024692,2]
[379022729,1755094242090,-168.0,0.00024752,2]
[379022730,1755094242100,-168.0,0.00024773,2]
[379022731,1755094242110,-168.0,0.00024859,2]
[379022732,1755094242120,-9278.39265417,0.00024862,2]
[379022733,1755094242130,-500.0,0.00024873,2]
[379022734,1755094242139,-500.0,0.00024873,2]
[379022735,1755094242151,-708.24,0.0002489,10]
[379022736,1755094242161,-3364.76716248,0.00024899,2]
[379022737,1755094242171,-238.84031609,0.00024899,2]
[379022738,1755094242180,-500.0,0.00024899,2]
[379022739,1755094242190,-500.0,0.00024899,2]
[379022740,1755094242200,-500.0,0.00024899,2]
[379022741,1755094242209,-500.0,0.00024899,2]
[379022742,1755094242220,-500.0,0.00024899,2]
[379022743,1755094242230,-500.0,0.00024899,2]
[379022744,1755094242239,-500.0,0.00024899,2]
[379022745,1755094242248,-500.0,0.00024899,2]
[379022746,1755094242257,-500.0,0.00024899,2]
[379022747,1755094242267,-500.0,0.00024899,2]
[379022748,1755094242277,-500.0,0.00024899,2]
[379022749,1755094242286,-500.0,0.00024899,2]
[379022750,1755094242295,-500.0,0.00024899,2]
[379022751,1755094242305,-500.0,0.00024899,2]
[379022752,1755094242314,-500.0,0.00024899,2]
[379022753,1755094242324,-500.0,0.00024899,2]
[379022754,1755094242334,-500.0,0.00024899,2]
[379022755,1755094242343,-500.0,0.00024899,2]
[379022756,1755094242353,-594.94224832,0.00024899,2]
[379022757,1755094242363,-500.0,0.00024899,2]
[379022758,1755094242374,-500.0,0.00024899,2]
[379022759,1755094242383,-500.0,0.00024899,2]
[379022760,1755094242393,-500.0,0.00024899,2]
[379022761,1755094242404,-500.0,0.00024899,2]
[379022762,1755094242413,-500.0,0.00024899,2]
[379022763,1755094242423,-250.0,0.00024899,2]
[379022764,1755094242433,-37829.39780212,0.000249,2]
[379022765,1755094242631,-31332.77878106,0.000249,2]
[379022766,1755094242872,-11007.74704793,0.000249,2]
[379022767,1755094242891,-31235.13582966,0.000249,2]
[379022768,1755094242906,-11060.44084657,0.000249,2]
[379022769,1755094242920,-44973.3941661,0.000249,2]
[379022780,1755094243098,-41392.9332765,0.000249,2]
[379022782,1755094243112,-13504.82991342,0.000249,2]
[379022783,1755094243127,-84391.69424794,0.000249,2]
[379022784,1755094243141,-15627.1480283,0.000249,2]
[379022785,1755094243156,-5648.02006242,0.000249,2]
[379022789,1755094243814,-467.176051,0.0002,2]
[379022858,1755094246852,-1.16427174,0.0002,2]
[379022861,1755094246875,-270.1,0.0002,2]
[379022869,1755094246943,-224.86806122,0.0002,2]
[379022871,1755094246953,-151.0,0.00024179,2]
[379022873,1755094246963,-151.0,0.00024179,2]
[379022876,1755094246974,-151.0,0.00024179,2]
[379022878,1755094246984,-151.0,0.00024179,2]
[379022880,1755094246993,-151.0,0.00024179,2]
[379022882,1755094247004,-151.0,0.00024179,2]
[379022884,1755094247013,-439.58193928,0.000249,2]
[379022886,1755094247025,-43605.0314847,0.000249,2]
[379022888,1755094247035,-168.0,0.00024962,2]
[379022890,1755094247044,-168.0,0.00024984,2]
[379022892,1755094247054,-456.95,0.00025,7]
[379022894,1755094247064,-452.26960157,0.00025015,2]
[379022896,1755094247073,-168.0,0.00025102,2]
[379022898,1755094247084,-151.391187,0.00025154,7]
[379022900,1755094247096,-168.0,0.00025163,2]
[379022902,1755094247105,-10435.36913708,0.00025164,2]
[379022904,1755094247115,-500.0,0.00025173,2]
[379022906,1755094247124,-636.0,0.00025202,2]